bitfinex/quotes_BTCUSD_20250614
["timestamp","ask_amount","ask_price","bid_price","bid_amount"]
[1749873102320,5.33378308,105280.0,105270.0,0.0178117]
[1749873102537,5.33378308,105280.0,105270.0,0.03562176]
[1749873102766,5.33378308,105280.0,105270.0,0.00890667]
[1749873103006,5.33378308,105280.0,105270.0,0.03562176]
[1749873103228,5.33378308,105280.0,105270.0,0.02671673]
[1749873103463,5.33378308,105280.0,105270.0,0.03562176]
[1749873104486,5.33378308,105280.0,105270.0,0.02671673]
[1749873104691,5.33378308,105280.0,105270.0,0.03562176]
[1749873104914,5.33378308,105280.0,105270.0,0.0178117]
[1749873105113,5.33378308,105280.0,105270.0,0.03562176]
[1749873106029,5.33378308,105280.0,105270.0,0.0178117]
[1749873106227,5.33378308,105280.0,105270.0,0.03562176]
[1749873106442,5.33378308,105280.0,105270.0,0.03562207]
[1749873107173,5.33378308,105280.0,105270.0,0.0519227]
[1749873108652,5.33378308,105280.0,105270.0,0.0672227]
[1749873109334,5.33306308,105280.0,105270.0,0.0672227]
[1749873109554,5.33302308,105280.0,105270.0,0.07798175]
[1749873109785,5.33302308,105280.0,105270.0,0.08926047]
[1749873110040,5.33302308,105280.0,105270.0,0.10706979]
[1749873110262,5.33302308,105280.0,105270.0,0.09631065]
[1749873111144,5.33302308,105280.0,105270.0,0.10298917]
[1749873111373,5.33302308,105280.0,105270.0,0.08517978]
[1749873111622,5.33302308,105280.0,105270.0,0.09631065]
[1749873111827,5.33302308,105280.0,105270.0,0.1029837]
[1749873112245,5.33302308,105280.0,105270.0,0.10296913]
[1749873112877,5.33302308,105280.0,105270.0,0.09629608]
[1749873113084,5.33302308,105280.0,105270.0,0.10296913]
[1749873113526,5.33302308,105280.0,105270.0,0.08517431]
[1749873113753,5.33302308,105280.0,105270.0,0.07850126]
[1749873113981,5.33302308,105280.0,105270.0,0.08517431]
[1749873114529,5.33302308,105280.0,105270.0,0.10296913]
[1749873114941,5.33302308,105280.0,105270.0,0.08517431]
[1749873115149,5.33302308,105280.0,105270.0,0.10296913]
[1749873115366,5.33378308,105280.0,105270.0,0.13902834]
[1749873115606,5.33378308,105280.0,105270.0,0.12123352]
[1749873115811,5.33378308,105280.0,105270.0,0.08323893]
[1749873116019,5.33378308,105280.0,105270.0,0.10103375]
[1749873116223,5.33378308,105280.0,105270.0,0.0943607]
[1749873116432,5.33378308,105280.0,105270.0,0.10102861]
[1749873118061,5.33378308,105280.0,105270.0,0.08323753]
[1749873118262,5.33378308,105280.0,105270.0,0.10102861]
[1749873118888,5.33378308,105280.0,105270.0,0.1390232]
[1749873119092,5.33378308,105280.0,105270.0,0.132351]
[1749873119345,5.33378308,105280.0,105270.0,0.13902241]
[1749873119552,5.13882308,105280.0,105270.0,0.1347255]
[1749873119758,4.9887332,105280.0,105270.0,0.35321048]
[1749873119966,5.19769902,105280.0,105270.0,0.34133704]
[1749873120172,5.19769902,105280.0,105270.0,0.34800844]
[1749873120173,5.18820109,105280.0,105270.0,0.34800844]
[1749873120379,5.18820109,105280.0,105270.0,0.32354661]
[1749873120594,5.18820109,105280.0,105270.0,0.34800842]
[1749873120804,5.18820109,105280.0,105270.0,0.35750744]
[1749873121006,5.14832109,105280.0,105270.0,0.36700628]
[1749873121213,5.18820109,105280.0,105270.0,0.36700628]
[1749873121631,5.18820109,105280.0,105270.0,0.36033488]
[1749873121855,5.18820109,105280.0,105270.0,0.35250744]
[1749873122270,5.18820109,105280.0,105270.0,0.33471703]
[1749873122488,5.18820109,105280.0,105270.0,0.36200637]
[1749873122709,5.18820109,105280.0,105270.0,0.34421596]
[1749873122931,5.18820109,105280.0,105270.0,0.36200637]
[1749873123576,5.18820109,105280.0,105270.0,0.33471703]
[1749873123794,5.18820109,105280.0,105270.0,0.34583126]
[1749873124006,5.18820109,105280.0,105270.0,0.30027302]
[1749873124441,5.18820109,105280.0,105270.0,0.30694263]
[1749873124647,5.18820109,105280.0,105270.0,0.28915701]
[1749873124888,5.18820109,105280.0,105270.0,0.2824874]
[1749873125089,5.18820109,105280.0,105270.0,0.30027302]
[1749873125296,5.18820109,105280.0,105270.0,0.30694263]
[1749873125500,5.18820109,105280.0,105270.0,0.30694264]
[1749873125707,5.18820109,105280.0,105270.0,0.30694263]
[1749873126127,5.18820109,105280.0,105270.0,0.29198642]
[1749873126336,5.00772988,105280.0,105270.0,0.3259405]
[1749873126554,5.00772988,105280.0,105270.0,0.32594033]
[1749873126757,5.00772988,105280.0,105270.0,0.32593987]
[1749873126987,5.19769948,105280.0,105270.0,0.32593987]
[1749873127809,5.19769948,105280.0,105270.0,0.32593986]
[1749873128438,5.19769948,105280.0,105270.0,0.30977158]
[1749873128641,5.19769948,105280.0,105270.0,0.31644416]
[1749873129946,5.19769948,105280.0,105270.0,0.30815564]
[1749873130110,5.19769948,105280.0,105270.0,0.32594309]
[1749873130313,5.19769948,105280.0,105270.0,0.32594308]
[1749873130804,5.19769948,105280.0,105270.0,0.30815564]
[1749873131274,5.19769948,105280.0,105270.0,0.32594309]
[1749873132153,5.18820128,105280.0,105270.0,0.30694514]
[1749873132364,4.99823131,105280.0,105270.0,0.31644407]
[1749873132612,5.18820091,105280.0,105270.0,0.31644407]
[1749873132841,5.18820091,105280.0,105270.0,0.29865662]
[1749873133061,5.18820091,105280.0,105270.0,0.31644407]
[1749873133258,4.99823131,105280.0,105270.0,0.30148508]
[1749873133462,4.99823131,105280.0,105270.0,0.42218442]
[1749873133463,0.0702937,105280.0,105270.0,0.42218442]
[1749873133666,0.07979199,105280.0,105270.0,0.47242912]
[1749873133878,0.07979199,105280.0,105270.0,0.47909883]
[1749873134476,0.07979199,105280.0,105270.0,0.47242889]
[1749873134741,0.07979199,105280.0,105270.0,0.47242888]
[1749873134953,0.06079559,105280.0,105270.0,0.47242888]
[1749873135162,0.0797919,105280.0,105270.0,0.4790988]
[1749873135364,0.0797919,105280.0,105270.0,0.55225039]
[1749873135577,0.0797919,105280.0,105270.0,0.47909837]
[1749873135797,0.08929029,105280.0,105270.0,0.46131219]
[1749873136001,0.08929029,105280.0,105270.0,0.45464238]
[1749873136212,0.08929029,105280.0,105270.0,0.46131838]
[1749873136444,0.08929029,105280.0,105270.0,0.49145506]
[1749873136654,0.08929029,105280.0,105270.0,0.4791211]
[1749873136866,0.08929029,105280.0,105270.0,0.47912112]
[1749873137466,0.08929029,105280.0,105270.0,0.4724451]
[1749873137692,0.08929029,105280.0,105270.0,0.4613184]
[1749873137917,0.08929029,105280.0,105270.0,0.47912112]
[1749873138572,0.0797919,105280.0,105270.0,0.47912112]
[1749873138774,0.0797919,105280.0,105270.0,0.44112653]
[1749873138985,0.08929029,105280.0,105270.0,0.44112653]
[1749873139399,0.0797919,105280.0,105270.0,0.44112653]
[1749873139607,0.0797919,105280.0,105270.0,0.44112651]
[1749873139842,0.0797919,105280.0,105270.0,0.41664779]
[1749873140266,0.0797919,105280.0,105270.0,0.44112651]
[1749873140476,0.0797919,105280.0,105270.0,0.41664779]
[1749873140681,0.0797919,105280.0,105270.0,0.46127181]
[1749873140923,0.0395919,105280.0,105270.0,0.47238916]
[1749873141134,0.08929029,105280.0,105270.0,0.63409957]
[1749873141337,0.08929029,105280.0,105270.0,0.61631182]
[1749873141552,0.08929029,105280.0,105270.0,0.61631195]
[1749873141766,0.03009361,105280.0,105270.0,0.62742952]
[1749873141974,0.03009361,105280.0,105270.0,0.63410006]
[1749873142216,0.0797919,105280.0,105270.0,0.63410006]
[1749873142418,0.0797919,105280.0,105270.0,0.61631195]
[1749873142629,0.0797919,105280.0,105270.0,0.63410006]
[1749873142844,0.0797919,105280.0,105270.0,0.60964141]
[1749873143049,0.0797919,105280.0,105270.0,0.62742952]
[1749873143256,0.0797919,105280.0,105270.0,0.60964141]
[1749873143472,0.0797919,105280.0,105270.0,0.62742952]
[1749873144129,0.0797919,105280.0,105270.0,0.63410006]
[1749873144333,0.0797919,105280.0,105270.0,0.60964141]
[1749873144553,0.0797919,105280.0,105270.0,0.63410006]
[1749873144766,0.0797919,105280.0,105270.0,0.61631195]
[1749873144980,0.0797919,105280.0,105270.0,0.62742952]
[1749873145181,0.0797919,105280.0,105270.0,0.60964141]
[1749873145385,0.0797919,105280.0,105270.0,0.63410006]
[1749873145600,0.0797919,105280.0,105270.0,0.47906006]
[1749873145810,0.0797919,105280.0,105270.0,0.63398006]
[1749873146040,0.08929029,105280.0,105270.0,0.63394006]
[1749873146676,0.08929029,105280.0,105270.0,0.65295006]
[1749873146881,0.08929029,105280.0,105270.0,0.61615195]
[1749873147118,0.08929029,105280.0,105270.0,0.63394007]
[1749873147559,0.08929029,105280.0,105270.0,0.62726953]
[1749873147769,0.08929029,105280.0,105270.0,0.61615195]
[1749873147986,0.08929029,105280.0,105270.0,0.63394007]
[1749873148612,0.08929029,105280.0,105270.0,0.62726953]
[1749873149030,0.08929029,105280.0,105270.0,0.63394007]
[1749873149479,0.08929029,105280.0,105270.0,0.62726953]
[1749873149694,0.08929029,105280.0,105270.0,0.61615195]
[1749873149963,0.08929029,105280.0,105270.0,0.63394006]
[1749873151460,0.08929029,105280.0,105270.0,0.62726953]
[1749873151703,0.08929029,105280.0,105270.0,0.63394007]
[1749873152107,0.08929029,105280.0,105270.0,0.58931591]
[1749873152517,0.08929102,105280.0,105270.0,0.59598645]
[1749873152728,0.08929102,105280.0,105270.0,0.58931591]
[1749873153137,0.08929102,105280.0,105270.0,0.59598644]
[1749873153549,0.08929102,105280.0,105270.0,0.59598454]
[1749873153762,0.08929102,105280.0,105270.0,0.57819643]
[1749873153988,0.08929102,105280.0,105270.0,0.58931084]
[1749873154208,0.08929102,105280.0,105270.0,0.59597948]
[1749873154415,0.08929102,105280.0,105270.0,0.58931084]
[1749873154617,0.08929102,105280.0,105270.0,0.59597948]
[1749873154852,0.08929102,105280.0,105270.0,0.57819643]
[1749873155057,0.08929102,105280.0,105270.0,0.58931568]
[1749873155265,0.08929102,105280.0,105270.0,0.58683568]
[1749873156477,0.08929102,105280.0,105270.0,0.59350614]
[1749873157547,0.27926062,105280.0,105270.0,0.58400739]
[1749873157759,0.27926062,105280.0,105270.0,0.57733693]
[1749873157966,0.27926062,105280.0,105270.0,0.58400739]
[1749873158619,0.26976278,105280.0,105270.0,0.58403827]
[1749873159578,0.26976278,105280.0,105270.0,0.55954904]
[1749873159783,0.26976278,105280.0,105270.0,0.58403827]
[1749873160361,0.26976278,105280.0,105270.0,0.57735939]
[1749873160572,0.26976278,105280.0,105270.0,0.57572676]
[1749873160898,0.26976278,105280.0,105270.0,0.59353713]
[1749873162039,0.26976278,105280.0,105270.0,0.57572676]
[1749873162353,0.26976278,105280.0,105270.0,0.58403828]
[1749873162921,0.26976278,105280.0,105270.0,0.55954904]
[1749873163128,0.26976278,105280.0,105270.0,0.58403828]
[1749873163333,0.26976278,105280.0,105270.0,0.56622792]
[1749873163734,0.05101775,105280.0,105270.0,0.67384935]
[1749873163933,0.06051577,105280.0,105270.0,0.60580228]
[1749873164134,0.06051577,105280.0,105270.0,0.61693344]
[1749873164359,0.07001388,105280.0,105270.0,0.62361216]
[1749873164556,0.07001388,105280.0,105270.0,0.59912354]
[1749873164877,0.07001388,105280.0,105270.0,0.60580226]
[1749873165130,0.07001388,105280.0,105270.0,0.62360288]
[1749873165340,0.07951208,105280.0,105270.0,0.5366081]
[1749873165751,0.08901037,105280.0,105270.0,0.5366081]
[1749873166195,0.08901037,105280.0,105270.0,0.51213225]
[1749873166397,0.07951208,105280.0,105270.0,0.5366081]
[1749873166604,0.07951208,105280.0,105270.0,0.53660809]
[1749873167739,0.07951208,105280.0,105270.0,0.51880748]
[1749873167945,0.07951208,105280.0,105270.0,0.52993286]
[1749873168155,0.07951208,105280.0,105270.0,0.53660809]
[1749873168363,0.07951208,105280.0,105270.0,0.52993286]
[1749873168567,0.07951208,105280.0,105270.0,0.51880748]
[1749873168766,0.07951208,105280.0,105270.0,0.53660809]
[1749873169209,0.07951208,105280.0,105270.0,0.52993286]
[1749873169336,0.06051577,105280.0,105270.0,0.53660809]
[1749873169533,0.06051577,105280.0,105270.0,0.59357959]
[1749873169963,0.02059577,105280.0,105270.0,0.58690436]
[1749873170179,0.06051577,105280.0,105270.0,0.59357959]
[1749873170484,0.06051577,105280.0,105270.0,0.57577827]
[1749873171358,0.06051577,105280.0,105270.0,0.593577]
[1749873171683,0.06051577,105280.0,105270.0,0.58690248]
[1749873171909,0.05101775,105280.0,105270.0,0.58690248]
[1749873172120,0.06051559,105280.0,105270.0,0.593577]
[1749873172591,0.06051559,105280.0,105270.0,0.58690248]
[1749873172816,0.06051559,105280.0,105270.0,0.56910375]
[1749873173235,0.06051559,105280.0,105270.0,0.58690248]
[1749873173436,0.06051559,105280.0,105270.0,0.57577827]
[1749873173656,0.05101775,105280.0,105270.0,0.593577]
[1749873174077,0.05101775,105280.0,105270.0,0.57577827]
[1749873174286,0.05101775,105280.0,105270.0,0.593577]
[1749873174504,0.04152,105280.0,105270.0,0.593577]
[1749873174714,0.05101766,105280.0,105270.0,0.57577827]
[1749873174916,0.05101766,105280.0,105270.0,0.56910375]
[1749873175133,0.05101766,105280.0,105270.0,0.57577827]
[1749873175338,0.04152,105280.0,105270.0,0.59357697]
[1749873175768,0.04152,105280.0,105270.0,0.57577826]
[1749873176003,0.05101766,105280.0,105270.0,0.41422375]
[1749873176223,0.04152,105280.0,105270.0,0.56854375]
[1749873176434,0.04152,105280.0,105270.0,0.57521826]
[1749873176859,0.04152,105280.0,105270.0,0.59301961]
[1749873177591,0.05101766,105280.0,105270.0,0.59301961]
[1749873178445,0.04152,105280.0,105270.0,0.59301961]
[1749873178823,0.04152,105280.0,105270.0,0.57521898]
[1749873179072,0.04152,105280.0,105270.0,0.41422375]
[1749873179283,0.05101766,105280.0,105270.0,0.57529898]
[1749873179493,0.05101766,105280.0,105270.0,0.59309968]
[1749873179884,0.05101766,105280.0,105270.0,0.575299]
[1749873180109,0.05101766,105280.0,105270.0,0.59309961]
[1749873180327,0.0605155,105280.0,105270.0,0.39892375]
[1749873180537,0.05101766,105280.0,105270.0,0.55999898]
[1749873180962,0.05101766,105280.0,105270.0,0.57779961]
[1749873181378,0.04152,105280.0,105270.0,0.57120438]
[1749873181583,0.04152,105280.0,105270.0,0.57787961]
[1749873181777,0.05101775,105280.0,105270.0,0.57787965]
[1749873181990,0.05101775,105280.0,105270.0,0.57787964]
[1749873182140,0.05101766,105280.0,105270.0,0.57787964]
[1749873182345,0.05101766,105280.0,105270.0,0.57787963]
[1749873182522,0.05101766,105280.0,105270.0,0.56007898]
[1749873182731,0.05101766,105280.0,105270.0,0.57787961]
[1749873182939,0.05101766,105280.0,105270.0,0.55340375]
[1749873183357,0.05101766,105280.0,105270.0,0.57787964]
[1749873183552,0.05101766,105280.0,105270.0,0.57787963]
[1749873183990,0.26948187,105280.0,105270.0,0.17911581]
[1749873184218,0.10221379,105280.0,105270.0,0.55204133]
[1749873184437,0.11171218,105280.0,105270.0,0.55204142]
[1749873184761,0.11171218,105280.0,105270.0,0.5437398]
[1749873184762,0.11171208,105280.0,105270.0,0.5437398]
[1749873184970,0.11171208,105280.0,105270.0,0.55487498]
[1749873185176,0.10221379,105280.0,105270.0,0.57105288]
[1749873185388,0.09271559,105280.0,105270.0,0.57105288]
[1749873185601,0.0700137,105280.0,105270.0,0.5615535]
[1749873185825,0.06051559,105280.0,105270.0,0.5710523]
[1749873186050,0.07001352,105280.0,105270.0,0.57105172]
[1749873186265,0.07001343,105280.0,105270.0,0.55324116]
[1749873186487,0.07001343,105280.0,105270.0,0.57105162]
[1749873186712,0.07951145,105280.0,105270.0,0.55205403]
[1749873186926,0.07951145,105280.0,105270.0,0.53424347]
[1749873187157,0.07951145,105280.0,105270.0,0.56155253]
[1749873187379,0.07951145,105280.0,105270.0,0.56155264]
[1749873187675,0.07951145,105280.0,105270.0,0.57105138]
[1749873187817,0.07951145,105280.0,105270.0,0.56437255]
[1749873188021,0.07951145,105280.0,105270.0,0.57105143]
[1749873188453,0.07951145,105280.0,105270.0,0.54656223]
[1749873188654,0.07951145,105280.0,105270.0,0.54374235]
[1749873188857,0.07951145,105280.0,105270.0,0.57105144]
[1749873189067,0.07951145,105280.0,105270.0,0.5532411]
[1749873189262,0.07951145,105280.0,105270.0,0.57105143]
[1749873189723,0.07951145,105280.0,105270.0,0.5532411]
[1749873190344,0.07951145,105280.0,105270.0,0.56437257]
[1749873190549,0.07951145,105280.0,105270.0,0.57105144]
[1749873190966,0.07951145,105280.0,105270.0,0.5532411]
[1749873191177,0.07001343,105280.0,105270.0,0.5532411]
[1749873191375,0.07951145,105280.0,105270.0,0.54255491]
[1749873191585,0.07951145,105280.0,105270.0,0.55205366]
[1749873191586,0.07001343,105280.0,105270.0,0.55205366]
[1749873191808,0.07001343,105280.0,105270.0,0.53424333]
[1749873192015,0.07001343,105280.0,105270.0,0.55205261]
[1749873192423,0.07001343,105280.0,105270.0,0.5520498]
[1749873192888,0.07001343,105280.0,105270.0,0.53424228]
[1749873193068,0.07001343,105280.0,105270.0,0.54537199]
[1749873193304,0.07001343,105280.0,105270.0,0.55204981]
[1749873193518,0.07001343,105280.0,105270.0,0.53424228]
[1749873193724,0.07001343,105280.0,105270.0,0.55204981]
[1749873194141,0.07001343,105280.0,105270.0,0.53424228]
[1749873194349,0.0605155,105280.0,105270.0,0.54374111]
[1749873194555,0.07001352,105280.0,105270.0,0.5342429]
[1749873194770,0.08621352,105280.0,105270.0,0.54374165]
[1749873194982,0.0767155,105280.0,105270.0,0.54374165]
[1749873195234,0.10261352,105280.0,105270.0,0.57104762]
[1749873195447,0.11211181,105280.0,105270.0,0.39760918]
[1749873195653,0.10261352,105280.0,105270.0,0.56154793]
[1749873195861,0.0931155,105280.0,105270.0,0.27406192]
[1749873196067,0.112112,105280.0,105270.0,0.42850192]
[1749873196284,0.2830861,105280.0,105270.0,0.4273103]
[1749873196494,0.2830861,105280.0,105270.0,0.4748012]
[1749873196720,0.0931165,105280.0,105270.0,0.47480173]
[1749873196930,0.0931165,105280.0,105270.0,0.47762322]
[1749873197150,0.0931165,105280.0,105270.0,0.48430116]
[1749873197594,0.0931165,105280.0,105270.0,0.32986116]
[1749873198074,0.0931165,105280.0,105270.0,0.33936036]
[1749873198296,0.10261424,105280.0,105270.0,0.33936031]
[1749873198509,0.10261424,105280.0,105270.0,0.31086732]
[1749873198730,0.10261424,105280.0,105270.0,0.2863828]
[1749873198955,0.11211263,105280.0,105270.0,0.29469061]
[1749873199166,0.11211263,105280.0,105270.0,0.30418972]
[1749873199385,0.11199263,105280.0,105270.0,0.31086732]
[1749873199590,0.11199263,105280.0,105270.0,0.34884411]
[1749873199818,0.09299595,105280.0,105270.0,0.3310368]
[1749873200083,0.0016,105280.0,105270.0,0.41177981]
[1749873200297,0.0414,105280.0,105270.0,0.5238212]
[1749873200500,0.0414,105280.0,105270.0,0.5060143]
[1749873200704,0.0414,105280.0,105270.0,0.51714326]
[1749873200944,0.0414,105280.0,105270.0,0.50601426]
[1749873201173,0.0016,105280.0,105270.0,0.49933688]
[1749873201387,0.0414,105280.0,105270.0,0.52382061]
[1749873202050,0.0414,105280.0,105270.0,0.44870668]
[1749873202258,0.0414,105280.0,105270.0,0.4420293]
[1749873202482,0.0414,105280.0,105270.0,0.44870672]
[1749873202685,0.0414,105280.0,105270.0,0.44870669]
[1749873202927,0.0414,105280.0,105270.0,0.43090033]
[1749873203130,0.0414,105280.0,105270.0,0.44870668]
[1749873203759,0.0414,105280.0,105270.0,0.44870713]
[1749873203967,0.0414,105280.0,105270.0,0.43090046]
[1749873204452,0.0414,105280.0,105270.0,0.44870709]
[1749873205355,0.0414,105280.0,105270.0,0.42422295]
[1749873205573,0.0414,105280.0,105270.0,0.44870709]
[1749873205785,0.0414,105280.0,105270.0,0.4420296]
[1749873205994,0.0414,105280.0,105270.0,0.44870709]
[1749873207048,0.0414,105280.0,105270.0,0.44871139]
[1749873207579,0.0414,105280.0,105270.0,0.43090161]
[1749873207800,0.0414,105280.0,105270.0,0.44871141]
[1749873208011,0.0016,105280.0,105270.0,0.44871142]
[1749873208233,0.0016,105280.0,105270.0,0.44871143]
[1749873208234,0.0414,105280.0,105270.0,0.44871143]
[1749873208459,0.0414,105280.0,105270.0,0.4420328]
[1749873208914,0.0414,105280.0,105270.0,0.44871144]
[1749873209569,0.0414,105280.0,105270.0,0.41661144]
[1749873209778,0.0414,105280.0,105270.0,0.41661145]
[1749873209985,0.0414,105280.0,105270.0,0.41661144]
[1749873210495,0.0414,105280.0,105270.0,0.41661142]
[1749873210706,0.0414,105280.0,105270.0,0.41660926]
[1749873210917,0.0414,105280.0,105270.0,0.40993118]
[1749873211128,0.0414,105280.0,105270.0,0.39212295]
[1749873211339,0.0414,105280.0,105270.0,0.41660928]
[1749873211555,0.0414,105280.0,105270.0,0.39212295]
[1749873211773,0.0414,105280.0,105270.0,0.41470103]
[1749873211987,0.05089766,105280.0,105270.0,0.43250928]
[1749873212406,0.05089766,105280.0,105270.0,0.43250927]
[1749873212621,0.05089766,105280.0,105270.0,0.43250926]
[1749873213794,0.05089766,105280.0,105270.0,0.42583118]
[1749873214007,0.05089766,105280.0,105270.0,0.43250926]
[1749873214301,0.05089766,105280.0,105270.0,0.42583118]
[1749873214515,0.05089766,105280.0,105270.0,0.43250926]
[1749873215138,0.05089766,105280.0,105270.0,0.41470103]
[1749873215400,0.05089766,105280.0,105270.0,0.43250926]
[1749873216746,0.05089766,105280.0,105270.0,0.41470103]
[1749873216961,0.05089766,105280.0,105270.0,0.43250926]
[1749873217384,0.05089766,105280.0,105270.0,0.41470103]
[1749873217592,0.05089766,105280.0,105270.0,0.42583118]
[1749873217804,0.05089766,105280.0,105270.0,0.43250941]
[1749873218073,0.05089766,105280.0,105270.0,0.41470109]
[1749873218286,0.05089766,105280.0,105270.0,0.43250947]
[1749873218498,0.0414,105280.0,105270.0,0.43250947]
[1749873218715,0.0414,105280.0,105270.0,0.43250946]
[1749873218920,0.0414,105280.0,105270.0,0.42583132]
[1749873219357,0.0414,105280.0,105270.0,0.43250947]
[1749873219566,0.0414,105280.0,105270.0,0.42583133]
[1749873219777,0.0414,105280.0,105270.0,0.43250947]
[1749873220408,0.05089775,105280.0,105270.0,0.41660947]
[1749873220654,0.05089775,105280.0,105270.0,0.40993134]
[1749873220872,0.0414,105280.0,105270.0,0.41660948]
[1749873221086,0.0414,105280.0,105270.0,0.39212295]
[1749873221087,0.05089775,105280.0,105270.0,0.39212295]
[1749873221304,0.05089775,105280.0,105270.0,0.40993131]
[1749873221521,0.05089775,105280.0,105270.0,0.41420948]
[1749873221729,0.0414,105280.0,105270.0,0.41420948]
[1749873222187,0.0414,105280.0,105270.0,0.38972295]
[1749873222394,0.05089775,105280.0,105270.0,0.41420907]
[1749873222816,0.05089775,105280.0,105270.0,0.40753104]
[1749873223025,0.05089775,105280.0,105270.0,0.38972295]
[1749873223268,0.05089766,105280.0,105270.0,0.41420904]
[1749873223489,0.05089766,105280.0,105270.0,0.41420906]
[1749873223700,0.05089766,105280.0,105270.0,0.41420904]
[1749873224039,0.05089766,105280.0,105270.0,0.41420905]
[1749873224462,0.05089766,105280.0,105270.0,0.41420907]
[1749873224680,0.05089766,105280.0,105270.0,0.40753104]
[1749873225089,0.05089766,105280.0,105270.0,0.39640098]
[1749873225290,0.05089766,105280.0,105270.0,0.41420907]
[1749873225494,0.05089766,105280.0,105270.0,0.39640098]
[1749873225831,0.05089766,105280.0,105270.0,0.41420907]
[1749873226065,0.05089766,105280.0,105270.0,0.41420904]
[1749873226258,0.05089766,105280.0,105270.0,0.39640098]
[1749873226688,0.05089766,105280.0,105270.0,0.40753103]
[1749873226894,0.0414,105280.0,105270.0,0.39640098]
[1749873227096,0.0414,105280.0,105270.0,0.40753102]
[1749873227297,0.0414,105280.0,105270.0,0.38972295]
[1749873227461,0.0414,105280.0,105270.0,0.41420904]
[1749873227662,0.0414,105280.0,105270.0,0.39640097]
[1749873227904,0.0414,105280.0,105270.0,0.41420904]
[1749873228107,0.05089766,105280.0,105270.0,0.41420904]
[1749873228341,0.05089766,105280.0,105270.0,0.39640097]
[1749873228546,0.05089766,105280.0,105270.0,0.41420906]
[1749873229033,0.05089766,105280.0,105270.0,0.39640111]
[1749873229233,0.05089766,105280.0,105270.0,0.40753139]
[1749873229445,0.05089766,105280.0,105270.0,0.41420955]
[1749873230515,0.05089766,105280.0,105270.0,0.35821138]
[1749873230720,0.05089766,105280.0,105270.0,0.35821139]
[1749873231160,0.0414,105280.0,105270.0,0.35821139]
[1749873231366,0.0414,105280.0,105270.0,0.35821138]
[1749873233221,0.0414,105280.0,105270.0,0.3582133]
[1749873233472,0.0414,105280.0,105270.0,0.35821402]
[1749873233680,0.0414,105280.0,105270.0,0.35821405]
[1749873233976,0.0414,105280.0,105270.0,0.35153517]
[1749873234304,0.0414,105280.0,105270.0,0.34040367]
[1749873234510,0.0414,105280.0,105270.0,0.35821406]
[1749873234718,0.05089775,105280.0,105270.0,0.35821407]
[1749873234938,0.05089775,105280.0,105270.0,0.35153518]
[1749873235137,0.05089775,105280.0,105270.0,0.35821408]
[1749873235516,0.05089775,105280.0,105270.0,0.35821409]
[1749873235724,0.05089775,105280.0,105270.0,0.35153519]
[1749873235934,0.05089775,105280.0,105270.0,0.34040368]
[1749873236175,0.05089775,105280.0,105270.0,0.35821409]
[1749873236351,0.05089775,105280.0,105270.0,0.34040368]
[1749873236560,0.05089775,105280.0,105270.0,0.35153519]
[1749873236765,0.05089775,105280.0,105270.0,0.35821409]
[1749873236970,0.05089775,105280.0,105270.0,0.35153519]
[1749873237404,0.05089775,105280.0,105270.0,0.35821409]
[1749873237626,0.05089775,105280.0,105270.0,0.35821416]
[1749873237830,0.05089775,105280.0,105270.0,0.33372478]
[1749873238297,0.05089775,105280.0,105270.0,0.35153504]
[1749873238529,0.05089775,105280.0,105270.0,0.34040361]
[1749873238967,0.05089775,105280.0,105270.0,0.35821383]
[1749873239173,0.05089775,105280.0,105270.0,0.35821384]
[1749873239386,0.05089775,105280.0,105270.0,0.35821383]
[1749873239613,0.05089775,105280.0,105270.0,0.35821333]
[1749873239834,0.05089775,105280.0,105270.0,0.358212]
[1749873240270,0.05089775,105280.0,105270.0,0.35821201]
[1749873240485,0.05089766,105280.0,105270.0,0.35153368]
[1749873240701,0.05089766,105280.0,105270.0,0.35821189]
[1749873240930,0.0603955,105280.0,105270.0,0.35821157]
[1749873241189,0.0603955,105280.0,105270.0,0.35821159]
[1749873241524,0.05089766,105280.0,105270.0,0.35821159]
[1749873241955,0.05089766,105280.0,105270.0,0.35153337]
[1749873242160,0.05089766,105280.0,105270.0,0.35821159]
[1749873243447,0.05089766,105280.0,105270.0,0.3582116]
[1749873243673,0.05089766,105280.0,105270.0,0.340403]
[1749873243877,0.05089766,105280.0,105270.0,0.35821155]
[1749873244082,0.05089766,105280.0,105270.0,0.35821156]
[1749873244298,0.05089766,105280.0,105270.0,0.35821159]
[1749873244508,0.05089766,105280.0,105270.0,0.33372478]
[1749873244941,0.05089766,105280.0,105270.0,0.340403]
[1749873245175,0.05089766,105280.0,105270.0,0.35821159]
[1749873245384,0.05089766,105280.0,105270.0,0.34040299]
[1749873245604,0.05089766,105280.0,105270.0,0.35153334]
[1749873245814,0.05089766,105280.0,105270.0,0.35153337]
[1749873246033,0.05089766,105280.0,105270.0,0.340403]
[1749873246271,0.05089766,105280.0,105270.0,0.34040301]
[1749873246480,0.05089766,105280.0,105270.0,0.35821162]
[1749873246686,0.05089766,105280.0,105270.0,0.35821163]
[1749873246894,0.05089766,105280.0,105270.0,0.3515334]
[1749873247100,0.05089766,105280.0,105270.0,0.35821163]
[1749873247323,0.05089766,105280.0,105270.0,0.33372478]
[1749873247543,0.05089766,105280.0,105270.0,0.34040301]
[1749873247751,0.05089766,105280.0,105270.0,0.3515334]
[1749873247962,0.05089766,105280.0,105270.0,0.3582117]
[1749873248173,0.05089766,105280.0,105270.0,0.33372478]
[1749873248385,0.0414,105280.0,105270.0,0.34040302]
[1749873248613,0.0414,105280.0,105270.0,0.35153343]
[1749873248881,0.0414,105280.0,105270.0,0.33372478]
[1749873249093,0.0414,105280.0,105270.0,0.35153343]
[1749873249304,0.0414,105280.0,105270.0,0.35821167]
[1749873249514,0.04168,105280.0,105270.0,0.45761548]
[1749873249727,0.04168,105280.0,105270.0,0.45761546]
[1749873249941,0.04168,105280.0,105270.0,0.45093725]
[1749873250182,0.0016,105280.0,105270.0,0.45761549]
[1749873250388,0.0016,105280.0,105270.0,0.8897758]
[1749873250609,0.0016,105280.0,105270.0,0.88309614]
[1749873250861,0.0016,105280.0,105270.0,0.81411342]
[1749873251075,0.0016,105280.0,105270.0,0.81411276]
[1749873251303,0.00047617,105300.0,105290.0,0.25044319]
[1749873251527,0.04055617,105300.0,105290.0,0.62873075]
[1749873251755,0.04055617,105300.0,105290.0,0.62205356]
[1749873251981,0.04055617,105300.0,105290.0,0.62873061]
[1749873252674,0.04055617,105300.0,105290.0,0.58279131]
[1749873253320,0.04255617,105300.0,105290.0,0.63172731]
[1749873253536,0.04255617,105300.0,105290.0,0.59972731]
[1749873253980,0.06154834,105300.0,105290.0,0.59023056]
[1749873254206,0.05205212,105300.0,105290.0,0.60922471]
[1749873254636,0.05205212,105300.0,105290.0,0.60254795]
[1749873255058,0.05205212,105300.0,105290.0,0.60254794]
[1749873255288,0.05305212,105300.0,105290.0,0.61622527]
[1749873255494,0.06254825,105300.0,105290.0,0.61622527]
[1749873255706,0.05305212,105300.0,105290.0,0.59841904]
[1749873255910,0.06254816,105300.0,105290.0,0.60954794]